fUSD/lending_fUSD_20250330
["ID","MTS","AMOUNT","RATE_DAILY","PERIOD"]
[356845817,1743319840787,-151.38,0.0002479,2]
[356845818,1743319840796,-151.38,0.0002479,2]
[356845819,1743319840805,-604031.312629,0.000248,3]
[356845820,1743319840816,-2675.386656,0.000248,2]
[356845821,1743319840827,-2701.15918304,0.00024873,2]
[356845822,1743319840836,-151.38,0.0002489,2]
[356845823,1743319840845,-151.38,0.0002489,2]
[356845824,1743319840854,-151.38,0.0002489,2]
[356845825,1743319840865,-151.38,0.0002489,2]
[356845826,1743319840874,-499117.858679,0.000249,3]
[356845827,1743319840883,-160.19209686,0.000249,2]
[356845828,1743319840893,-250.0,0.00025,2]
[356845829,1743319840902,-2924.01462381,0.00025,2]
[356845830,1743319840911,-1881.99999992,0.00025,7]
[356845831,1743319840920,-1023.17320099,0.00025,2]
[356845832,1743319840929,-160.77162784,0.00025,2]
[356845833,1743319840938,-2000.0,0.00025,4]
[356845834,1743319840947,-11283.11214588,0.0002501,2]
[356845835,1743319840956,-300.0,0.000251,2]
[356845836,1743319840966,-3247.30745078,0.000251,2]
[356845837,1743319840975,-1852.42,0.0002517,2]
[356845838,1743319840984,-911.543,0.00025557,2]
[356845839,1743319840994,-544.533,0.00025557,2]
[356845840,1743319841003,-1090.532,0.00025557,2]
[356845841,1743319841013,-1364.855,0.00025557,2]
[356845842,1743319841022,-1041.291,0.00025557,2]
[356845843,1743319841032,-646.504,0.00025557,2]
[356845844,1743319841041,-3947.0,0.00025557,2]
[356845845,1743319841050,-219.762,0.00025557,2]
[356845846,1743319841059,-2057.043,0.00025557,2]
[356845847,1743319841068,-1293.495,0.00025557,2]
[356845848,1743319841077,-1212.9546,0.00025973,10]
[356845849,1743319841086,-576.26374437,0.0002599,2]
[356845850,1743319841095,-151.38,0.0002599,2]
[356845851,1743319841104,-4340.8426206,0.00026,2]
[356845852,1743319841113,-4433.65,0.00026,2]
[356845853,1743319841123,-14128.66214234,0.000264,2]
[356845854,1743319841132,-250.0,0.00026839,2]
[356845855,1743319841142,-164.75,0.00026849,2]
[356845856,1743319841151,-2701.15918304,0.00026867,2]
[356845857,1743319841160,-300.0,0.00027,2]
[356845858,1743319841170,-300.0,0.000271,2]
[356845859,1743319841179,-3266.79006715,0.000275,2]
[356845860,1743319841188,-641.74319829,0.00028,60]
[356845861,1743319841198,-2701.15918304,0.00028862,2]
[356845862,1743319841207,-4339.41382624,0.00028969,2]
[356845863,1743319841217,-350.0,0.00029,2]
[356845864,1743319841226,-202.56,0.00029415,2]
[356845865,1743319841235,-1451.55,0.00029869,2]
[356845866,1743319841245,-75387.18334096,0.000299,2]
[356845867,1743319841255,-227.93395157,0.0002999,2]
[356845868,1743319841265,-151.38,0.0002999,2]
[356845869,1743319841275,-2270.75225535,0.0003,2]
[356845870,1743319841284,-29420.73944627,0.0003,2]
[356845871,1743319841294,-3546.97660563,0.0003,2]
[356845872,1743319841304,-242.93925973,0.0003,2]
[356845873,1743319841313,-1228.44923196,0.0003,10]
[356845874,1743319841323,-1743.05471874,0.0003,2]
[356845875,1743319841332,-1539.164003,0.0003,2]
[356845876,1743319841342,-212.0,0.0003,2]
[356845877,1743319841352,-2000.0,0.0003,4]
[356845878,1743319841361,-11090.128337,0.00030396,2]
[356845879,1743319841371,-7442.37399825,0.000306,2]
[356845880,1743319841380,-150.0,0.00030627,2]
[356845881,1743319841389,-596.87,0.00030628,2]
[356845882,1743319841399,-161.04,0.00030679,2]
[356845883,1743319841409,-23900.0,0.00030769,2]
[356845884,1743319841418,-166.66,0.00030846,2]
[356845885,1743319841428,-150.0,0.00030846,7]
[356845886,1743319841438,-1000.0,0.00030856,2]
[356845887,1743319841448,-2701.15918304,0.00030856,2]
[356845888,1743319841458,-516.0,0.00030915,2]
[356845889,1743319841468,-413.94,0.00030978,2]
[356845890,1743319841478,-151.38,0.0003099,2]
[356845891,1743319841488,-151.38,0.0003099,2]
[356845892,1743319841498,-468.0,0.00031,2]
[356845893,1743319841508,-219.0,0.00031,2]
[356845894,1743319841517,-400.0,0.00031,2]
[356845895,1743319841527,-200262.60159687,0.00031,2]
[356845896,1743319841536,-3179.89124768,0.00031,2]
[356845897,1743319841546,-369.0,0.00031,2]
[356845898,1743319841555,-753.0,0.00031,2]
[356845899,1743319841565,-1718.86947529,0.0003121,2]
[356845900,1743319841575,-150.0,0.00031301,2]
[356845901,1743319841584,-443.48,0.00031301,2]
[356845902,1743319841594,-150.0,0.00031301,2]
[356845903,1743319841603,-443.48,0.00031301,2]
[356845904,1743319841613,-150.0,0.00031301,2]
[356845905,1743319841623,-150.0,0.00031301,2]
[356845906,1743319841632,-150.0,0.00031301,2]
[356845907,1743319841641,-443.48,0.00031301,2]
[356845908,1743319841651,-352.81,0.00031301,2]
[356845909,1743319841661,-150.0,0.00031301,2]
[356845910,1743319841671,-150.0,0.00031301,2]
[356845911,1743319841680,-150.0,0.00031301,2]
[356845912,1743319841690,-346.99,0.00031301,2]
[356845913,1743319841699,-150.0,0.00031301,2]
[356845914,1743319841709,-443.48,0.00031301,2]
[356845915,1743319841718,-346.99,0.00031301,2]
[356845916,1743319841728,-443.48,0.00031301,2]
[356845917,1743319841738,-346.99,0.00031301,2]
[356845918,1743319841748,-150.0,0.00031301,2]
[356845919,1743319841758,-150.0,0.00031301,2]
[356845920,1743319841768,-150.0,0.00031301,2]
[356845921,1743319841777,-1053.58813703,0.00031305,2]
[356845922,1743319841787,-234.6,0.0003136,2]
[356845923,1743319841798,-200.0,0.00031455,2]
[356845924,1743319841807,-10223.70250997,0.00031977,2]
[356845925,1743319841819,-164.59,0.00032122,2]
[356845926,1743319841829,-185.381,0.00032122,31]
[356845927,1743319841838,-346.99,0.00032123,2]
[356845928,1743319841848,-150.0,0.00032123,2]
[356845929,1743319841857,-150.0,0.00032123,2]
[356845930,1743319841867,-443.48,0.00032123,2]
[356845931,1743319841876,-371.11,0.00032123,2]
[356845932,1743319841886,-150.0,0.00032123,2]
[356845933,1743319841896,-443.48,0.00032123,2]
[356845934,1743319841905,-150.0,0.00032123,2]
[356845935,1743319841915,-346.99,0.00032123,2]
[356845936,1743319841924,-150.0,0.00032123,2]
[356845937,1743319841934,-346.99,0.00032123,2]
[356845938,1743319841943,-443.48,0.00032123,2]
[356845939,1743319841952,-443.48,0.00032123,2]
[356845940,1743319841961,-150.0,0.00032123,2]
[356845941,1743319841971,-346.99,0.00032123,2]
[356845942,1743319841980,-150.0,0.00032123,2]
[356845943,1743319841989,-346.99,0.00032123,2]
[356845944,1743319841999,-443.48,0.00032123,2]
[356845945,1743319842008,-150.0,0.00032123,2]
[356845946,1743319842017,-150.0,0.00032123,2]
[356845947,1743319842027,-203.79,0.00032123,2]
[356845948,1743319842036,-443.48,0.00032123,2]
[356845949,1743319842046,-150.0,0.00032123,2]
[356845950,1743319842055,-443.48,0.00032123,2]
[356845951,1743319842064,-377.01,0.00032123,2]
[356845952,1743319842074,-443.48,0.00032123,2]
[356845953,1743319842083,-150.0,0.00032123,2]
[356845954,1743319842092,-278.77,0.00032123,2]
[356845955,1743319842102,-150.0,0.00032123,2]
[356845956,1743319842111,-443.48,0.00032123,2]
[356845957,1743319842120,-150.0,0.00032123,2]
[356845958,1743319842129,-150.0,0.00032123,2]
[356845959,1743319842138,-443.48,0.00032123,2]
[356845960,1743319842147,-150.0,0.00032123,2]
[356845961,1743319842156,-203.93,0.00032123,2]
[356845962,1743319842165,-150.0,0.00032123,2]
[356845963,1743319842175,-443.48,0.00032123,2]
[356845964,1743319842184,-344.85,0.00032123,2]
[356845965,1743319842193,-443.48,0.00032123,2]
[356845966,1743319842203,-443.48,0.00032123,2]
[356845967,1743319842212,-443.48,0.00032123,2]
[356845968,1743319842221,-877.81,0.00032123,2]
[356845969,1743319842231,-224.01,0.00032123,2]
[356845970,1743319842241,-1451.55,0.00032132,2]
[356845971,1743319842250,-443.48,0.00032178,2]
[356845972,1743319842260,-346.99,0.00032178,2]
[356845973,1743319842269,-150.0,0.00032178,2]
[356845974,1743319842279,-150.0,0.00032178,2]
[356845975,1743319842288,-193.61970565,0.000322,2]
[356845976,1743319842297,-1100.75798856,0.00032258,5]
[356845977,1743319842307,-219.46066212,0.00032423,2]
[356845978,1743319842316,-151.38,0.0003249,2]
[356845979,1743319842325,-30102.63665818,0.000325,3]
[356845980,1743319842334,-164.75,0.00032646,2]
[356845981,1743319842344,-150.0,0.00032652,2]
[356845982,1743319842354,-150.0,0.00032713,2]
[356845983,1743319842363,-9713.4726,0.00032716,2]
[356845984,1743319842373,-150.0,0.00032717,2]
[356845985,1743319842382,-219.46066212,0.00032767,2]
[356845986,1743319842392,-151.38,0.00032806,2]
[356845987,1743319842401,-223.0,0.00032816,2]
[356845988,1743319842411,-32864.0257,0.00032816,2]
[356845989,1743319842420,-1073.3641,0.00032816,2]
[356845990,1743319842430,-19991.104,0.00032816,2]
[356845991,1743319842439,-500.0,0.00032816,2]
[356845992,1743319842449,-56777.7117,0.00032816,2]
[356845993,1743319842459,-1000.0,0.00032816,2]
[356845994,1743319842468,-16091.078,0.00032816,2]
[356845995,1743319842478,-7517.8972,0.00032816,2]
[356845996,1743319842487,-1365.2884,0.00032816,2]
[356845997,1743319842496,-2701.15918304,0.00032851,2]
[356845999,1743319842505,-371.7845,0.000329,2]
[356846000,1743319842515,-378.2075,0.000329,2]
[356846001,1743319842630,-151.0,0.00032925,7]
[356846002,1743319842663,-151.0,0.00032925,7]
[356846003,1743319842673,-163.65,0.00032932,120]
[356846004,1743319842682,-151.38,0.00032941,2]
[356846005,1743319842691,-73521.61379799,0.00032951,2]
[356846006,1743319843070,-561.55039681,0.000149,2]
[356846007,1743319843079,-647.0,0.00025557,2]
[356846008,1743319843089,-647.0,0.00028557,2]
[356846009,1743319843098,-647.0,0.00031557,2]
[356846010,1743319843108,-35114.74496934,0.00032951,2]
[356846011,1743319843117,-151.0,0.00032951,7]
[356846012,1743319843127,-151.0,0.00032951,7]
[356846013,1743319843136,-151.0,0.00032951,7]
[356846014,1743319843145,-151.0,0.00032951,7]
[356846015,1743319843155,-151.0,0.00032951,7]
[356846016,1743319843164,-151.0,0.00032951,7]
[356846017,1743319843173,-488.087718,0.00032951,7]
[356846018,1743319843183,-488.087718,0.00032951,7]
[356846019,1743319843192,-151.0,0.00032951,7]
[356846020,1743319843201,-151.0,0.00032951,7]
[356846021,1743319843210,-285.242633,0.00032951,7]
[356846022,1743319843219,-285.242633,0.00032951,7]
[356846023,1743319843228,-151.0,0.00032951,7]
[356846024,1743319843238,-151.0,0.00032951,7]
[356846025,1743319843247,-174.582321,0.00032951,7]
[356846026,1743319843256,-1691.825242,0.00032951,7]
[356846027,1743319843265,-174.582321,0.00032951,7]
[356846028,1743319843274,-151.0,0.00032951,7]
[356846029,1743319843284,-157.307026,0.00032951,7]
[356846030,1743319843293,-157.307026,0.00032951,7]
[356846031,1743319843302,-151.0,0.00032951,7]
[356846032,1743319843311,-151.0,0.00032951,7]
[356846033,1743319843320,-151.0,0.00032951,7]
[356846034,1743319843329,-400.0,0.0003297,2]
[356846035,1743319843339,-450.0,0.00033,2]
[356846036,1743319843348,-212.0,0.00033,2]
[356846037,1743319843358,-151.38,0.00033087,2]
[356846038,1743319843367,-151.38,0.00033087,2]
[356846039,1743319843376,-151.38,0.00033087,2]
[356846040,1743319843386,-206630.15360069,0.00033104,2]
[356846041,1743319843396,-163.94938084,0.00033104,2]
[356846042,1743319843405,-10207.2133649,0.00033104,2]
[356846043,1743319843415,-1911.79269009,0.00033104,2]
[356846044,1743319843424,-183.15612922,0.00033104,2]
[356846045,1743319843434,-643.0,0.00033104,2]
[356846046,1743319843443,-965.4987276,0.00033104,2]
[356846047,1743319843453,-4225.9290031,0.00033104,2]
[356846048,1743319843463,-915.70576739,0.00033104,2]
[356846049,1743319843473,-13031.64335752,0.00033104,2]
[356846050,1743319843482,-216.78894494,0.00033104,2]
[356846051,1743319843492,-560.65896442,0.00033104,2]
[356846052,1743319843501,-150.0,0.00033104,2]
[356846053,1743319843511,-7740.3696347,0.00033104,2]
[356846054,1743319843520,-604.40762071,0.00033104,2]
[356846055,1743319843530,-623.52717485,0.00033104,2]
[356846056,1743319843539,-213.75012504,0.00033104,2]
[356846057,1743319843549,-41434.64547046,0.00033104,2]
[356846058,1743319843559,-228.68124813,0.00033104,2]
[356846059,1743319843568,-10004.93010666,0.00033104,2]
[356846060,1743319843577,-556.34398263,0.00033104,2]
[356846061,1743319843587,-503.63621997,0.00033104,2]
[356846062,1743319843596,-215.4860046,0.00033104,2]
[356846063,1743319843606,-8105.72807279,0.00033104,2]
[356846064,1743319843615,-363.1,0.000335,31]
[356846065,1743319843624,-363.1,0.000335,31]
[356846066,1743319843634,-363.1,0.000335,31]
[356846067,1743319843643,-363.1,0.000335,31]
[356846068,1743319843653,-363.1,0.000335,31]
[356846069,1743319843662,-363.1,0.000335,31]
[356846070,1743319843671,-363.1,0.000335,31]
[356846071,1743319843680,-363.1,0.000335,31]
[356846072,1743319843689,-363.1,0.000335,31]
[356846073,1743319843698,-363.1,0.000335,31]
[356846074,1743319843708,-363.1,0.000335,31]
[356846075,1743319843717,-363.1,0.000335,31]
[356846076,1743319843728,-195.94,0.00033771,2]
[356846077,1743319843738,-253.14,0.0003404,2]
[356846078,1743319843748,-209.0,0.0003426,2]
[356846079,1743319843758,-1451.55,0.00034396,2]
[356846080,1743319843767,-647.0,0.00034557,2]
[356846081,1743319843776,-949.63170463,0.00034713,2]
[356846084,1743319846198,-561.55039679,0.0002215,2]
[356846085,1743319846208,-857.44960321,0.00025557,2]
[356846127,1743321031989,-283.76,0.00026849,2]
[356846128,1743321031998,-576.192,0.00027528,2]
[356846129,1743321032008,-1429.167,0.00027528,2]
[356846130,1743321032017,-795.0,0.00027528,2]
[356846131,1743321032026,-1286.221,0.00027528,2]
[356846132,1743321032036,-347.337,0.00027528,2]
[356846133,1743321032045,-1370.94186519,0.00027528,2]
[356846134,1743321032057,-250.0,0.00027528,2]
[356846135,1743321032203,-863.71708021,0.00027528,2]
[356846136,1743321032252,-257.4,0.00027528,2]
[356846137,1743321032263,-481.32166956,0.00027528,2]
[356846199,1743321037890,-83.68538504,0.00027528,2]
[356846200,1743321037900,-166.778,0.00027528,2]
[356846201,1743321037911,-163.631,0.00027528,2]
[356846202,1743321037920,-150.859,0.00027528,2]
[356846203,1743321037929,-214.753,0.00027528,2]
[356846204,1743321037939,-299.224,0.00027528,2]
[356846205,1743321037948,-3402.98827396,0.00029373,2]
[356846206,1743321037957,-165.25,0.00029373,2]
[356846207,1743321037967,-487.666458,0.000312,2]
[356846208,1743321037978,-283.76,0.00032646,2]
[356846209,1743321037989,-150.0,0.00033103,2]
[356846210,1743321037999,-531.40936261,0.00033499,7]
[356846211,1743321038009,-150.99,0.000335,30]
[356846212,1743321038018,-6898.39,0.000335,15]
[356846213,1743321038028,-9999.99,0.000335,2]
[356846214,1743321038037,-817.91,0.000335,2]
[356846215,1743321038047,-8176.91,0.000335,10]
[356846216,1743321038056,-319.55,0.000335,31]
[356846217,1743321038066,-319.55,0.000335,31]
[356846218,1743321038076,-319.55,0.000335,31]
[356846219,1743321038087,-319.55,0.000335,31]
[356846220,1743321038097,-319.55,0.000335,31]
[356846221,1743321038107,-319.55,0.000335,31]
[356846222,1743321038117,-319.55,0.000335,31]
[356846223,1743321038126,-319.55,0.000335,31]
[356846224,1743321038135,-319.55,0.000335,31]
[356846225,1743321038144,-319.55,0.000335,31]
[356846226,1743321038154,-319.55,0.000335,31]
[356846227,1743321038163,-319.55,0.000335,31]
[356846228,1743321038172,-4228.85,0.000335,2]
[356846229,1743321038181,-29999.99,0.000335,30]
[356846230,1743321038190,-3496.02,0.000335,2]
[356846231,1743321038199,-1140.01,0.000335,2]
[356846232,1743321038209,-371.0,0.000336,2]
[356846233,1743321038218,-378.0,0.000336,2]
[356846234,1743321038227,-300.0,0.00034464,5]
[356846235,1743321038237,-150.0,0.00034473,2]
[356846236,1743321038246,-198.888,0.00034713,39]
[356846237,1743321038255,-393.6694,0.000349,2]
[356846238,1743321038265,-313.9919,0.000349,2]
[356846239,1743321038274,-1000.0,0.00034929,5]
[356846240,1743321038284,-2859.86345905,0.00035,2]
[356846241,1743321038293,-422.06,0.00035,30]
[356846242,1743321038303,-500.0,0.00035,2]
[356846243,1743321038312,-600.0,0.00035074,2]
[356846244,1743321038322,-300.39922191,0.00035165,7]
[356846245,1743321038331,-413.55,0.00035219,2]
[356846246,1743321038341,-18157.98573017,0.00035319,2]
[356846247,1743321038350,-195.16,0.00035346,5]
[356846248,1743321038359,-250.0,0.00035349,2]
[356846249,1743321038368,-153.37,0.0003541,2]
[356846250,1743321038378,-150.0,0.00035429,2]
[356846251,1743321038387,-1471.78,0.00035431,2]
[356846252,1743321038397,-3815.51,0.00035441,2]
[356846253,1743321038406,-1000.0,0.00035549,2]
[356846254,1743321038416,-542.57,0.00035549,2]
[356846255,1743321038426,-8400.72,0.00035576,2]
[356846256,1743321038435,-324.98,0.00035584,2]
[356846257,1743321038445,-510.8,0.00035584,2]
[356846258,1743321038454,-150.0,0.00035616,2]
[356846259,1743321038464,-542.57,0.00035624,2]
[356846260,1743321038474,-209.0,0.0003564,2]
[356846261,1743321038484,-874.68,0.00035665,2]
[356846262,1743321038494,-542.57,0.00035699,2]
[356846263,1743321038503,-542.57,0.00035774,2]
[356846264,1743321038513,-150.0,0.00035843,2]
[356846265,1743321038523,-542.57,0.00035849,2]
[356846266,1743321038532,-542.57,0.00035924,2]
[356846267,1743321038542,-172.29990353,0.00035973,30]
[356846268,1743321038551,-166.66,0.00035987,2]
[356846269,1743321038561,-542.57,0.00035999,2]
[356846270,1743321038571,-542.57,0.00036073,2]
[356846271,1743321038580,-250.0,0.00036109,2]
[356846272,1743321038590,-301.43,0.00036126,2]
[356846273,1743321038599,-150.0,0.00036141,7]
[356846274,1743321038609,-542.57,0.00036148,2]
[356846275,1743321038619,-161.92,0.00036157,120]
[356846276,1743321038629,-2666.45254305,0.00036173,2]
[356846277,1743321038638,-542.57,0.00036223,2]
[356846278,1743321038648,-542.57,0.00036298,2]
[356846279,1743321038658,-542.57,0.00036373,2]
[356846280,1743321038667,-172.29990353,0.00036384,30]
[356846281,1743321038677,-542.57,0.00036448,2]
[356846282,1743321038687,-542.57,0.00036523,2]
[356846283,1743321038696,-1646.2122,0.00036542,2]
[356846284,1743321038705,-536.47,0.0003655,2]
[356846285,1743321038715,-150.0,0.00036554,2]
[356846286,1743321038726,-542.57,0.00036597,2]
[356846287,1743321038735,-173.51195285,0.00036641,15]
[356846288,1743321038746,-186.36368412,0.00036641,15]
[356846289,1743321038756,-19980.93,0.00036642,2]
[356846290,1743321038766,-542.57,0.00036672,2]
[356846291,1743321038776,-319.55,0.000367,31]
[356846292,1743321038786,-319.55,0.000367,31]
[356846293,1743321038796,-319.55,0.000367,31]
[356846294,1743321038806,-319.55,0.000367,31]
[356846295,1743321038816,-319.55,0.000367,31]
[356846296,1743321038826,-319.55,0.000367,31]
[356846297,1743321038836,-319.55,0.000367,31]
[356846298,1743321038846,-319.55,0.000367,31]
[356846299,1743321038856,-319.55,0.000367,31]
[356846300,1743321038865,-319.55,0.000367,31]
[356846301,1743321038875,-319.55,0.000367,31]
[356846302,1743321038884,-319.55,0.000367,31]
[356846303,1743321038894,-319.55,0.000367,31]
[356846304,1743321038904,-319.55,0.000367,31]
[356846305,1743321038914,-319.55,0.000367,31]
[356846306,1743321038923,-319.55,0.000367,31]
[356846307,1743321038933,-319.55,0.000367,31]
[356846308,1743321038943,-319.55,0.000367,31]
[356846309,1743321038952,-319.55,0.000367,31]
[356846310,1743321038962,-319.55,0.000367,31]
[356846311,1743321038971,-319.55,0.000367,31]
[356846312,1743321038981,-319.55,0.000367,31]
[356846313,1743321038991,-319.55,0.000367,31]
[356846314,1743321039001,-319.55,0.000367,31]
[356846315,1743321039011,-195.36,0.00036727,2]
[356846316,1743321039020,-542.57,0.00036747,2]
[356846317,1743321039029,-297.04473408,0.00036804,2]
[356846318,1743321039039,-542.57,0.00036822,2]
[356846319,1743321039048,-151.74,0.00036849,2]
[356846320,1743321039057,-542.57,0.00036897,2]
[356846321,1743321039067,-542.57,0.00036972,2]
[356846322,1743321039078,-550.0,0.00037,2]
[356846323,1743321039087,-209.0,0.0003702,2]
[356846324,1743321039097,-151.0,0.0003709,7]
[356846325,1743321039106,-151.0,0.0003709,7]
[356846326,1743321039115,-200.0,0.00037182,2]
[356846327,1743321039124,-281.57942078,0.000372,103]
[356846328,1743321039133,-165.38,0.00037213,2]
[356846329,1743321039142,-163.91,0.00037214,2]
[356846330,1743321039151,-621.51,0.0003726,2]
[356846331,1743321039160,-1772.1,0.00037267,2]
[356846332,1743321039170,-211.0,0.0003727,2]
[356846333,1743321039179,-209.0,0.0003727,2]
[356846334,1743321039189,-301.56298907,0.00037281,7]
[356846335,1743321039198,-150.0,0.00037491,2]
[356846336,1743321039208,-1000.0,0.00037603,60]
[356846337,1743321039218,-1471.78,0.00037695,2]
[356846338,1743321039228,-622.98995287,0.00038,3]
[356846339,1743321039238,-1000.0,0.00038151,60]
[356846340,1743321039247,-151.74,0.00038219,2]
[356846341,1743321039257,-782.79,0.00038219,2]
[356846342,1743321039266,-444.05,0.00038219,2]
[356846343,1743321039276,-444.05,0.00038219,2]
[356846344,1743321039285,-782.79,0.00038219,2]
[356846345,1743321039294,-782.79,0.00038219,2]
[356846346,1743321039303,-444.05,0.00038219,2]
[356846347,1743321039312,-444.05,0.00038219,2]
[356846348,1743321039322,-782.79,0.00038219,2]
[356846349,1743321039331,-782.79,0.00038219,2]
[356846350,1743321039340,-211.0,0.0003832,2]
[356846351,1743321039349,-209.0,0.0003832,2]
[356846352,1743321039358,-1000.0,0.00038356,6]
[356846353,1743321039369,-209.0,0.000384,2]
[356846354,1743321039379,-561.55039679,0.000384,45]
[356846355,1743321039388,-2500.0,0.000384,2]
[356846356,1743321039397,-150.0,0.00038428,2]
[356846357,1743321039406,-279.14,0.00038443,2]
[356846358,1743321039417,-164.75,0.00038443,2]
[356846359,1743321039427,-283.76,0.00038443,2]
[356846360,1743321039436,-162.57,0.00038486,2]
[356846361,1743321039445,-1000.0,0.00038493,6]
[356846362,1743321039455,-212.0,0.000385,2]
[356846363,1743321039464,-2343.78,0.000385,2]
[356846364,1743321039473,-829.77,0.000385,2]
[356846365,1743321039482,-2952.62,0.000385,2]
[356846366,1743321039491,-2499.65,0.000385,2]
[356846367,1743321039501,-592.61638472,0.000385,2]
[356846368,1743321039510,-1000.0,0.0003863,6]
[356846369,1743321039519,-150.0,0.0003863,2]
[356846370,1743321039529,-150.0,0.0003863,2]
[356846371,1743321039539,-150.0,0.0003863,2]
[356846372,1743321039548,-150.0,0.0003863,2]
[356846373,1743321039557,-150.0,0.0003863,2]
[356846374,1743321039567,-372.24,0.0003863,2]
[356846375,1743321039576,-150.0,0.0003863,2]
[356846376,1743321039586,-150.0,0.0003863,2]
[356846377,1743321039595,-300.91,0.0003863,2]
[356846378,1743321039605,-1000.0,0.00038699,60]
[356846379,1743321039614,-500.0,0.00038699,60]
[356846380,1743321039623,-151.47,0.00038712,2]
[356846381,1743321039632,-150.0,0.0003874,2]
[356846382,1743321039642,-151.92,0.0003874,2]
[356846383,1743321039651,-443.48,0.0003874,2]
[356846384,1743321039660,-150.0,0.0003874,2]
[356846385,1743321039669,-150.0,0.0003874,2]
[356846386,1743321039678,-443.48,0.0003874,2]
[356846387,1743321039687,-1000.0,0.00038767,6]
[356846388,1743321039697,-1000.0,0.00038897,2]
[356846389,1743321039706,-1000.0,0.00038904,6]
[356846390,1743321039715,-7654.06916377,0.00038997,4]
[356846391,1743321039725,-1019.0,0.00039,9]
[356846392,1743321039734,-600.0,0.00039,2]
[356846393,1743321039743,-1000.0,0.00039041,6]
[356846394,1743321039752,-1000.0,0.00039178,6]
[356846395,1743321039762,-1000.0,0.00039247,60]
[356846396,1743321039771,-1000.0,0.00039315,6]
[356846397,1743321039781,-150.0,0.00039366,2]
[356846398,1743321039790,-211.0,0.0003937,2]
[356846399,1743321039799,-209.0,0.0003937,2]
[356846400,1743321039808,-1000.0,0.00039452,6]
[356846402,1743321039817,-1000.0,0.00039589,6]
[356846403,1743321039827,-385.04001695,0.00039726,15]
[356846404,1743321039836,-1000.0,0.00039726,6]
[356846405,1743321039846,-209.0,0.0003978,2]
[356846406,1743321039855,-204.0,0.0003978,30]
[356846407,1743321039864,-1000.0,0.00039795,60]
[356846408,1743321039874,-500.0,0.00039795,60]
[356846409,1743321039883,-1000.0,0.00039863,6]
[356846410,1743321039892,-2973.2672558,0.0003988,2]
[356846411,1743321039902,-151.0,0.0003989,14]
[356846412,1743321039911,-151.0,0.0003989,14]
[356846413,1743321039921,-151.0,0.0003989,14]
[356846414,1743321039931,-500.0,0.000399,2]
[356846415,1743321039941,-319.55,0.000399,31]
[356846416,1743321040066,-319.55,0.000399,31]
[356846417,1743321040076,-319.55,0.000399,31]
[356846418,1743321040086,-319.55,0.000399,31]
[356846419,1743321040095,-319.55,0.000399,31]
[356846420,1743321040104,-319.55,0.000399,31]
[356846421,1743321040113,-319.55,0.000399,31]
[356846422,1743321040122,-319.55,0.000399,31]